[Event "Titled Tuesday Blitz January 25 2022"]
[White "Maevsky, Nikolay"]
[Black "Azadaliyev, Jahandar"]
[WhiteFideId "4198220"]
[BlackFideId "13425811"]
[WhiteElo "2104"]
[BlackElo "1795"]
[Result "0-1"]
[Round "09"]
[TimeControl "180+1"]
[Date "2022.01.26"]
[WhiteClock "0:00:01"]
[BlackClock "0:00:33"]

1. d4 {[%clk 0:03:00]}  Nf6 {[%clk 0:02:59]} 2. Nf3 {[%clk 0:03:00]}  d5 {[%clk 0:02:59]} 3. e3 {[%clk 0:03:01]}  e6 {[%clk 0:02:59]} 4. Bd3 {[%clk 0:03:00]}  b6 {[%clk 0:02:59]} 5. b3 {[%clk 0:03:01]}  Bb7 {[%clk 0:03:00]} 6. Bb2 {[%clk 0:03:01]}  Nbd7 {[%clk 0:03:01]} 7. Nbd2 {[%clk 0:03:01]}  Be7 {[%clk 0:03:01]} 8. O-O {[%clk 0:03:00]}  O-O {[%clk 0:03:01]} 9. Ne5 {[%clk 0:03:00]}  Nxe5 {[%clk 0:03:01]} 10. dxe5 {[%clk 0:03:00]}  Nd7 {[%clk 0:03:02]} 11. f4 {[%clk 0:02:56]}  c5 {[%clk 0:03:01]} 12. c4 {[%clk 0:02:53]}  d4 {[%clk 0:02:35]} 13. Qe2 {[%clk 0:02:45]}  dxe3 {[%clk 0:02:30]} 14. Qxe3 {[%clk 0:02:44]}  Qc7 {[%clk 0:02:31]} 15. Ne4 {[%clk 0:02:35]}  Rfd8 {[%clk 0:02:30]} 16. Rf3 {[%clk 0:02:30]}  Nf8 {[%clk 0:02:24]} 17. Rg3 {[%clk 0:02:30]}  Ng6 {[%clk 0:02:23]} 18. Rf1 {[%clk 0:02:28]}  Qc6 {[%clk 0:02:20]} 19. Nf2 {[%clk 0:01:56]}  Bh4 {[%clk 0:02:14]} 20. Be4 {[%clk 0:01:55]}  Qc7 {[%clk 0:02:14]} 21. Rf3 {[%clk 0:01:44]}  Bxf2+ {[%clk 0:02:13]} 22. R3xf2 {[%clk 0:01:44]}  Bxe4 {[%clk 0:02:11]} 23. Qxe4 {[%clk 0:01:44]}  Ne7 {[%clk 0:02:12]} 24. g4 {[%clk 0:01:32]}  Qc6 {[%clk 0:02:00]} 25. Qe2 {[%clk 0:01:23]}  Rd7 {[%clk 0:01:34]} 26. f5 {[%clk 0:01:23]}  Rad8 {[%clk 0:01:33]} 27. f6 {[%clk 0:01:23]}  Ng6 {[%clk 0:01:33]} 28. fxg7 {[%clk 0:01:16]}  Nh4 {[%clk 0:01:24]} 29. Qe3 {[%clk 0:01:08]}  Rd1 {[%clk 0:01:18]} 30. Qh3 {[%clk 0:00:53]}  R8d2 {[%clk 0:01:03]} 31. Rxd2 {[%clk 0:00:23]}  Rxd2 {[%clk 0:00:58]} 32. Rf2 {[%clk 0:00:23]}  Rd1+ {[%clk 0:00:52]} 33. Rf1 {[%clk 0:00:23]}  Nf3+ {[%clk 0:00:51]} 34. Kf2 {[%clk 0:00:18]}  Rd2+ {[%clk 0:00:46]} 35. Ke3 {[%clk 0:00:10]}  Ng5 {[%clk 0:00:36]} 36. Qh5 {[%clk 0:00:05]}  Qg2 {[%clk 0:00:35]} 37. Qxg5 {[%clk 0:00:04]}  Qe2+ {[%clk 0:00:35]} 38. Kf4 {[%clk 0:00:04]}  Qxf1+ {[%clk 0:00:36]} 39. Kg3 {[%clk 0:00:04]}  Qg2+ {[%clk 0:00:36]} 40. Kf4 {[%clk 0:00:03]}  Qf2+ {[%clk 0:00:32]} 41. Ke4 {[%clk 0:00:03]}  Re2+ {[%clk 0:00:33]} 42. Kd3 {[%clk 0:00:03]}  Qf3+ {[%clk 0:00:33]} 43. Qe3 {[%clk 0:00:01]}  Qxe3# {[%clk 0:00:33]} 0-1


[Site "https://www.chess.com"]

[Event "Titled Tuesday Blitz January 25 2022"]
[White "Maghsoodloo, Parham"]
[Black "Zarubitski, Viachaslau"]
[WhiteFideId "12539929"]
[BlackFideId "13509373"]
[WhiteElo "2630"]
[BlackElo "2325"]
[Result "1-0"]
[Round "09"]
[TimeControl "180+1"]
[Date "2022.01.26"]
[WhiteClock "0:00:59"]
[BlackClock "0:00:43"]

1. d4 {[%clk 0:03:00]}  Nf6 {[%clk 0:02:59]} 2. Nf3 {[%clk 0:03:00]}  d5 {[%clk 0:02:57]} 3. c4 {[%clk 0:02:58]}  c6 {[%clk 0:02:57]} 4. e3 {[%clk 0:02:57]}  Bf5 {[%clk 0:02:56]} 5. Nc3 {[%clk 0:02:56]}  e6 {[%clk 0:02:55]} 6. Nh4 {[%clk 0:02:56]}  Bg6 {[%clk 0:02:54]} 7. Qb3 {[%clk 0:02:56]}  Qb6 {[%clk 0:02:52]} 8. Nxg6 {[%clk 0:02:48]}  hxg6 {[%clk 0:02:52]} 9. Bd2 {[%clk 0:02:48]}  Nbd7 {[%clk 0:02:52]} 10. O-O-O {[%clk 0:02:47]}  Be7 {[%clk 0:02:45]} 11. f3 {[%clk 0:02:42]}  Qc7 {[%clk 0:02:44]} 12. g4 {[%clk 0:02:38]}  a6 {[%clk 0:02:41]} 13. cxd5 {[%clk 0:02:32]}  Nxd5 {[%clk 0:02:37]} 14. Kb1 {[%clk 0:02:19]}  Qb6 {[%clk 0:02:20]} 15. Qxb6 {[%clk 0:02:08]}  N7xb6 {[%clk 0:02:21]} 16. e4 {[%clk 0:02:08]}  Nxc3+ {[%clk 0:02:19]} 17. bxc3 {[%clk 0:02:07]}  g5 {[%clk 0:02:18]} 18. Kc2 {[%clk 0:02:06]}  O-O-O {[%clk 0:02:14]} 19. Be3 {[%clk 0:01:58]}  Nd7 {[%clk 0:02:13]} 20. e5 {[%clk 0:01:52]}  Nf8 {[%clk 0:02:06]} 21. Bd3 {[%clk 0:01:52]}  Rh3 {[%clk 0:02:05]} 22. Rdf1 {[%clk 0:01:48]}  Ng6 {[%clk 0:02:02]} 23. Bxg6 {[%clk 0:01:48]}  fxg6 {[%clk 0:02:03]} 24. Kd3 {[%clk 0:01:49]}  c5 {[%clk 0:02:00]} 25. Ke4 {[%clk 0:01:49]}  cxd4 {[%clk 0:02:00]} 26. cxd4 {[%clk 0:01:48]}  Rd5 {[%clk 0:02:00]} 27. Rf2 {[%clk 0:01:47]}  Kd7 {[%clk 0:01:59]} 28. Rc1 {[%clk 0:01:47]}  Bd8 {[%clk 0:01:45]} 29. Rb2 {[%clk 0:01:38]}  Rb5 {[%clk 0:01:33]} 30. Rxb5 {[%clk 0:01:34]}  axb5 {[%clk 0:01:34]} 31. Rc2 {[%clk 0:01:24]}  b4 {[%clk 0:01:31]} 32. Bg1 {[%clk 0:01:10]}  Be7 {[%clk 0:01:16]} 33. d5 {[%clk 0:01:00]}  exd5+ {[%clk 0:01:15]} 34. Kxd5 {[%clk 0:01:00]}  Rxf3 {[%clk 0:01:15]} 35. e6+ {[%clk 0:01:01]}  Ke8 {[%clk 0:01:15]} 36. Rc8+ {[%clk 0:01:00]}  Bd8 {[%clk 0:01:15]} 37. Bb6 {[%clk 0:01:00]}  Rd3+ {[%clk 0:01:15]} 38. Ke5 {[%clk 0:00:59]}  Rd1 {[%clk 0:01:03]} 39. Bxd8 {[%clk 0:00:57]}  Rxd8 {[%clk 0:01:03]} 40. Rxd8+ {[%clk 0:00:58]}  Kxd8 {[%clk 0:01:04]} 41. Kd6 {[%clk 0:00:58]}  Ke8 {[%clk 0:01:01]} 42. e7 {[%clk 0:00:58]}  b6 {[%clk 0:00:55]} 43. Ke6 {[%clk 0:00:58]}  b5 {[%clk 0:00:53]} 44. Kd6 {[%clk 0:00:58]}  b3 {[%clk 0:00:48]} 45. axb3 {[%clk 0:00:58]}  b4 {[%clk 0:00:49]} 46. h3 {[%clk 0:00:59]}  Kf7 {[%clk 0:00:47]} 47. Kd7 {[%clk 0:00:59]}  Kg8 {[%clk 0:00:48]} 48. e8=Q+ {[%clk 0:00:59]}  Kh7 {[%clk 0:00:49]} 49. Qe7 {[%clk 0:00:59]}  Kg8 {[%clk 0:00:42]} 50. Qxb4 {[%clk 0:00:59]}  Kh7 {[%clk 0:00:43]} 51. Qc4 {[%clk 0:00:59]} 1-0


[Site "https://www.chess.com"]

[Event "Titled Tuesday Blitz January 25 2022"]
[White "Maksimovic, Bojan"]
[Black "Saravana, Krishnan P."]
[WhiteFideId "14408120"]
[BlackFideId "5018382"]
[WhiteElo "2450"]
[BlackElo "2210"]
[Result "0-1"]
[Round "09"]
[TimeControl "180+1"]
[Date "2022.01.26"]
[WhiteClock "0:00:03"]
[BlackClock "0:00:06"]

1. e4 {[%clk 0:02:17]}  e6 {[%clk 0:02:58]} 2. d4 {[%clk 0:02:17]}  d5 {[%clk 0:02:58]} 3. Nc3 {[%clk 0:02:18]}  Bb4 {[%clk 0:02:57]} 4. e5 {[%clk 0:02:19]}  c5 {[%clk 0:02:58]} 5. Bd2 {[%clk 0:02:19]}  Ne7 {[%clk 0:02:57]} 6. a3 {[%clk 0:02:19]}  Bxc3 {[%clk 0:02:56]} 7. Bxc3 {[%clk 0:02:20]}  b6 {[%clk 0:02:56]} 8. Bb5+ {[%clk 0:02:20]}  Bd7 {[%clk 0:02:55]} 9. Bd3 {[%clk 0:02:20]}  Nbc6 {[%clk 0:02:50]} 10. f4 {[%clk 0:02:19]}  Ng6 {[%clk 0:02:30]} 11. g3 {[%clk 0:02:16]}  cxd4 {[%clk 0:02:18]} 12. Bd2 {[%clk 0:02:16]}  f5 {[%clk 0:02:11]} 13. Nf3 {[%clk 0:02:08]}  O-O {[%clk 0:02:10]} 14. O-O {[%clk 0:02:02]}  Be8 {[%clk 0:02:09]} 15. Qe2 {[%clk 0:02:01]}  Nge7 {[%clk 0:02:03]} 16. Qf2 {[%clk 0:02:01]}  Bh5 {[%clk 0:01:53]} 17. Nxd4 {[%clk 0:02:01]}  Nxd4 {[%clk 0:01:52]} 18. Qxd4 {[%clk 0:02:02]}  Rc8 {[%clk 0:01:52]} 19. Bb4 {[%clk 0:01:56]}  Nc6 {[%clk 0:01:46]} 20. Qf2 {[%clk 0:01:56]}  Nxb4 {[%clk 0:01:46]} 21. axb4 {[%clk 0:01:57]}  Rf7 {[%clk 0:01:46]} 22. Qd4 {[%clk 0:01:56]}  Rfc7 {[%clk 0:01:46]} 23. c3 {[%clk 0:01:52]}  h6 {[%clk 0:01:42]} 24. Ra2 {[%clk 0:01:36]}  g5 {[%clk 0:01:40]} 25. Rfa1 {[%clk 0:01:19]}  Qe7 {[%clk 0:01:37]} 26. Rf1 {[%clk 0:01:09]}  Rf8 {[%clk 0:01:30]} 27. b5 {[%clk 0:01:08]}  Qg7 {[%clk 0:01:21]} 28. Kf2 {[%clk 0:01:03]}  Be8 {[%clk 0:01:19]} 29. Ke3 {[%clk 0:01:01]}  Rc5 {[%clk 0:01:17]} 30. Rfa1 {[%clk 0:00:55]}  Rf7 {[%clk 0:01:17]} 31. Rf1 {[%clk 0:00:40]}  Rfc7 {[%clk 0:01:06]} 32. Qb4 {[%clk 0:00:33]}  gxf4+ {[%clk 0:00:54]} 33. Qxf4 {[%clk 0:00:33]}  Rc4 {[%clk 0:00:48]} 34. Bxc4 {[%clk 0:00:22]}  Rxc4 {[%clk 0:00:48]} 35. Qf3 {[%clk 0:00:23]}  Qxe5+ {[%clk 0:00:45]} 36. Kf2 {[%clk 0:00:23]}  Bxb5 {[%clk 0:00:44]} 37. Re1 {[%clk 0:00:21]}  Re4 {[%clk 0:00:41]} 38. Rxe4 {[%clk 0:00:19]}  dxe4 {[%clk 0:00:34]} 39. Qf4 {[%clk 0:00:17]}  Qc5+ {[%clk 0:00:27]} 40. Qe3 {[%clk 0:00:17]}  Qc4 {[%clk 0:00:20]} 41. Ra1 {[%clk 0:00:15]}  Kh7 {[%clk 0:00:20]} 42. g4 {[%clk 0:00:15]}  a5 {[%clk 0:00:14]} 43. Kg3 {[%clk 0:00:14]}  Qc7+ {[%clk 0:00:14]} 44. Qf4 {[%clk 0:00:14]}  Qd7 {[%clk 0:00:12]} 45. g5 {[%clk 0:00:09]}  Qd3+ {[%clk 0:00:11]} 46. Kh4 {[%clk 0:00:08]}  Qd8 {[%clk 0:00:11]} 47. Rg1 {[%clk 0:00:07]}  Be2 {[%clk 0:00:10]} 48. Kh3 {[%clk 0:00:04]}  Bg4+ {[%clk 0:00:09]} 49. Kh4 {[%clk 0:00:02]}  Kg6 {[%clk 0:00:08]} 50. Qe5 {[%clk 0:00:01]}  Qxg5+ {[%clk 0:00:06]} 51. Kg3 {[%clk 0:00:02]}  Qe3+ {[%clk 0:00:07]} 52. Kg2 {[%clk 0:00:03]}  Qf3# {[%clk 0:00:06]} 0-1


[Site "https://www.chess.com"]

[Event "Titled Tuesday Blitz January 25 2022"]
[White "Martinez Ramirez, Lennis"]
[Black "Abarca Gonzalez, Nicolas"]
[WhiteFideId "3509079"]
[BlackFideId "3409422"]
[WhiteElo "2374"]
[BlackElo "2504"]
[Result "0-1"]
[Round "09"]
[TimeControl "180+1"]
[Date "2022.01.26"]
[WhiteClock "0:00:01"]
[BlackClock "0:00:26"]

1. d4 {[%clk 0:03:00]}  Nf6 {[%clk 0:02:59]} 2. Bf4 {[%clk 0:03:01]}  d6 {[%clk 0:02:58]} 3. Nc3 {[%clk 0:03:00]}  a6 {[%clk 0:02:55]} 4. e4 {[%clk 0:03:00]}  b5 {[%clk 0:02:53]} 5. f3 {[%clk 0:02:59]}  Bb7 {[%clk 0:02:50]} 6. Qd2 {[%clk 0:02:51]}  Nbd7 {[%clk 0:02:45]} 7. O-O-O {[%clk 0:02:51]}  c5 {[%clk 0:02:45]} 8. dxc5 {[%clk 0:02:48]}  Nxc5 {[%clk 0:02:44]} 9. e5 {[%clk 0:02:18]}  dxe5 {[%clk 0:02:41]} 10. Bxe5 {[%clk 0:02:17]}  Qxd2+ {[%clk 0:02:39]} 11. Rxd2 {[%clk 0:02:18]}  Rc8 {[%clk 0:02:32]} 12. a3 {[%clk 0:01:54]}  g6 {[%clk 0:02:29]} 13. Nh3 {[%clk 0:01:51]}  Bh6 {[%clk 0:02:24]} 14. Bf4 {[%clk 0:01:48]}  Bg7 {[%clk 0:02:23]} 15. Be2 {[%clk 0:01:38]}  O-O {[%clk 0:02:21]} 16. Rhd1 {[%clk 0:01:38]}  e6 {[%clk 0:02:13]} 17. Kb1 {[%clk 0:01:32]}  Nd5 {[%clk 0:02:13]} 18. Nxd5 {[%clk 0:01:31]}  Bxd5 {[%clk 0:02:14]} 19. Be3 {[%clk 0:01:24]}  Na4 {[%clk 0:02:14]} 20. Bd4 {[%clk 0:01:24]}  Bh6 {[%clk 0:02:05]} 21. f4 {[%clk 0:01:07]}  Bxg2 {[%clk 0:02:03]} 22. Ng5 {[%clk 0:01:06]}  Rfd8 {[%clk 0:01:54]} 23. Bxb5 {[%clk 0:00:48]}  Rxd4 {[%clk 0:01:50]} 24. Bxa4 {[%clk 0:00:42]}  Rxa4 {[%clk 0:01:46]} 25. Rxg2 {[%clk 0:00:32]}  Rxf4 {[%clk 0:01:47]} 26. Rd7 {[%clk 0:00:19]}  Bxg5 {[%clk 0:01:42]} 27. Rxg5 {[%clk 0:00:18]}  Rf1+ {[%clk 0:01:42]} 28. Ka2 {[%clk 0:00:18]}  Rxc2 {[%clk 0:01:43]} 29. Ra5 {[%clk 0:00:16]}  Rc6 {[%clk 0:01:42]} 30. Ra7 {[%clk 0:00:15]}  Rf2 {[%clk 0:01:12]} 31. R5xa6 {[%clk 0:00:14]}  Rxa6 {[%clk 0:01:06]} 32. Rxa6 {[%clk 0:00:15]}  Rxh2 {[%clk 0:01:06]} 33. a4 {[%clk 0:00:14]}  h5 {[%clk 0:01:02]} 34. a5 {[%clk 0:00:14]}  Rc2 {[%clk 0:00:52]} 35. Rd6 {[%clk 0:00:13]}  h4 {[%clk 0:00:48]} 36. a6 {[%clk 0:00:10]}  Rc8 {[%clk 0:00:43]} 37. b4 {[%clk 0:00:10]}  g5 {[%clk 0:00:39]} 38. b5 {[%clk 0:00:10]}  Ra8 {[%clk 0:00:38]} 39. Kb3 {[%clk 0:00:06]}  h3 {[%clk 0:00:36]} 40. b6 {[%clk 0:00:01]}  Rxa6 {[%clk 0:00:34]} 41. b7 {[%clk 0:00:01]}  Ra1 {[%clk 0:00:25]} 42. b8=Q+ {[%clk 0:00:01]}  Kg7 {[%clk 0:00:26]} 0-1


[Site "https://www.chess.com"]

[Event "Titled Tuesday Blitz January 25 2022"]
[White "Michelakos, Panagiotis"]
[Black "Seo, Jung Min"]
[WhiteFideId "4216067"]
[BlackFideId "1734687"]
[WhiteElo "2140"]
[BlackElo "2401"]
[Result "1-0"]
[Round "09"]
[TimeControl "180+1"]
[Date "2022.01.26"]
[WhiteClock "0:00:05"]
[BlackClock "0:00:03"]

1. d4 {[%clk 0:03:00]}  Nf6 {[%clk 0:02:59]} 2. c4 {[%clk 0:03:01]}  e6 {[%clk 0:03:00]} 3. Nc3 {[%clk 0:03:01]}  Bb4 {[%clk 0:03:00]} 4. e3 {[%clk 0:03:01]}  c5 {[%clk 0:03:00]} 5. Nf3 {[%clk 0:03:01]}  O-O {[%clk 0:03:00]} 6. Bd3 {[%clk 0:03:01]}  b6 {[%clk 0:02:56]} 7. O-O {[%clk 0:03:00]}  Bb7 {[%clk 0:02:56]} 8. Na4 {[%clk 0:02:47]}  cxd4 {[%clk 0:02:55]} 9. exd4 {[%clk 0:02:48]}  Be7 {[%clk 0:02:54]} 10. Nc3 {[%clk 0:02:41]}  d5 {[%clk 0:02:51]} 11. Bg5 {[%clk 0:02:34]}  Nbd7 {[%clk 0:02:50]} 12. Rc1 {[%clk 0:02:24]}  Rc8 {[%clk 0:02:49]} 13. cxd5 {[%clk 0:02:03]}  Nxd5 {[%clk 0:02:47]} 14. Nxd5 {[%clk 0:01:48]}  Bxg5 {[%clk 0:02:41]} 15. Rxc8 {[%clk 0:01:47]}  Bxc8 {[%clk 0:02:32]} 16. Nxg5 {[%clk 0:01:45]}  Qxg5 {[%clk 0:02:32]} 17. Ne3 {[%clk 0:01:40]}  Nf6 {[%clk 0:02:29]} 18. Qa4 {[%clk 0:01:35]}  Qf4 {[%clk 0:02:17]} 19. Qxa7 {[%clk 0:01:30]}  Qxd4 {[%clk 0:02:16]} 20. Rd1 {[%clk 0:01:30]}  Qxb2 {[%clk 0:02:13]} 21. Nc4 {[%clk 0:01:23]}  Qc3 {[%clk 0:02:10]} 22. Nxb6 {[%clk 0:01:21]}  h6 {[%clk 0:02:02]} 23. Bf1 {[%clk 0:01:18]}  Qc5 {[%clk 0:01:56]} 24. Nxc8 {[%clk 0:01:15]}  Qxc8 {[%clk 0:01:50]} 25. a4 {[%clk 0:01:13]}  Qc2 {[%clk 0:01:50]} 26. Re1 {[%clk 0:01:07]}  Qd2 {[%clk 0:01:44]} 27. Rb1 {[%clk 0:01:03]}  Qc2 {[%clk 0:01:34]} 28. Rb8 {[%clk 0:01:03]}  g5 {[%clk 0:01:33]} 29. a5 {[%clk 0:00:58]}  Ne4 {[%clk 0:01:06]} 30. Rxf8+ {[%clk 0:00:56]}  Kxf8 {[%clk 0:01:06]} 31. a6 {[%clk 0:00:56]}  Nd2 {[%clk 0:00:49]} 32. Qb8+ {[%clk 0:00:44]}  Ke7 {[%clk 0:00:41]} 33. Qb4+ {[%clk 0:00:39]}  Kf6 {[%clk 0:00:28]} 34. a7 {[%clk 0:00:34]}  Qd1 {[%clk 0:00:25]} 35. Qxd2 {[%clk 0:00:32]}  Qxd2 {[%clk 0:00:25]} 36. a8=Q {[%clk 0:00:31]}  Kg7 {[%clk 0:00:25]} 37. Qe4 {[%clk 0:00:26]}  Qc1 {[%clk 0:00:23]} 38. g3 {[%clk 0:00:26]}  Qd1 {[%clk 0:00:23]} 39. Qe5+ {[%clk 0:00:26]}  Kg6 {[%clk 0:00:21]} 40. Kg2 {[%clk 0:00:26]}  Qd2 {[%clk 0:00:20]} 41. Qe4+ {[%clk 0:00:25]}  Kg7 {[%clk 0:00:20]} 42. Bd3 {[%clk 0:00:25]}  Kf8 {[%clk 0:00:17]} 43. Qd4 {[%clk 0:00:22]}  Qd1 {[%clk 0:00:14]} 44. Qc5+ {[%clk 0:00:18]}  Kg7 {[%clk 0:00:13]} 45. Qe5+ {[%clk 0:00:19]}  Kf8 {[%clk 0:00:14]} 46. Be4 {[%clk 0:00:19]}  Qe2 {[%clk 0:00:12]} 47. Qh8+ {[%clk 0:00:17]}  Ke7 {[%clk 0:00:12]} 48. Bf3 {[%clk 0:00:18]}  Qe5 {[%clk 0:00:09]} 49. Qxh6 {[%clk 0:00:17]}  Qf5 {[%clk 0:00:09]} 50. Qh5 {[%clk 0:00:14]}  Qf6 {[%clk 0:00:07]} 51. Qg4 {[%clk 0:00:13]}  Qh6 {[%clk 0:00:07]} 52. Qe4 {[%clk 0:00:12]}  f5 {[%clk 0:00:07]} 53. Qb4+ {[%clk 0:00:12]}  Kf6 {[%clk 0:00:07]} 54. Qd4+ {[%clk 0:00:12]}  Ke7 {[%clk 0:00:07]} 55. Qe5 {[%clk 0:00:11]}  g4 {[%clk 0:00:07]} 56. Bd5 {[%clk 0:00:11]}  Kd7 {[%clk 0:00:07]} 57. Bc4 {[%clk 0:00:09]}  Qg6 {[%clk 0:00:07]} 58. h3 {[%clk 0:00:04]}  gxh3+ {[%clk 0:00:07]} 59. Kxh3 {[%clk 0:00:05]}  Qh6+ {[%clk 0:00:07]} 60. Kg2 {[%clk 0:00:06]}  Qg6 {[%clk 0:00:07]} 61. Qd4+ {[%clk 0:00:04]}  Ke7 {[%clk 0:00:07]} 62. Qe5 {[%clk 0:00:05]}  Kd7 {[%clk 0:00:07]} 63. Bb5+ {[%clk 0:00:03]}  Ke7 {[%clk 0:00:07]} 64. Qc7+ {[%clk 0:00:04]}  Kf6 {[%clk 0:00:07]} 65. Qd6 {[%clk 0:00:04]}  Qg7 {[%clk 0:00:05]} 66. Bc4 {[%clk 0:00:04]}  Qf7 {[%clk 0:00:05]} 67. Qd4+ {[%clk 0:00:03]}  Kg5 {[%clk 0:00:04]} 68. Qe5 {[%clk 0:00:03]}  Qb7+ {[%clk 0:00:03]} 69. Kh2 {[%clk 0:00:03]}  Qh7+ {[%clk 0:00:02]} 70. Kg1 {[%clk 0:00:03]}  Qb7 {[%clk 0:00:03]} 71. Bxe6 {[%clk 0:00:03]}  Qb1+ {[%clk 0:00:03]} 72. Kg2 {[%clk 0:00:04]}  Qd3 {[%clk 0:00:03]} 73. Bd5 {[%clk 0:00:05]} 1-0


[Site "https://www.chess.com"]

[Event "Titled Tuesday Blitz January 25 2022"]
[White "Moskalenko, Alexander"]
[Black "Ambartsumova, Karina"]
[WhiteFideId "4155351"]
[BlackFideId "4166299"]
[WhiteElo "2515"]
[BlackElo "2262"]
[Result "1-0"]
[Round "09"]
[TimeControl "180+1"]
[Date "2022.01.26"]
[WhiteClock "0:01:50"]
[BlackClock "0:00:10"]

1. f4 {[%clk 0:03:00]}  Nf6 {[%clk 0:02:57]} 2. Nf3 {[%clk 0:03:00]}  g6 {[%clk 0:02:57]} 3. g3 {[%clk 0:03:01]}  Bg7 {[%clk 0:02:57]} 4. Bg2 {[%clk 0:03:02]}  O-O {[%clk 0:02:57]} 5. d3 {[%clk 0:03:03]}  d5 {[%clk 0:02:46]} 6. O-O {[%clk 0:03:03]}  c5 {[%clk 0:02:45]} 7. c3 {[%clk 0:03:04]}  Nc6 {[%clk 0:02:44]} 8. Ne5 {[%clk 0:03:04]}  Qc7 {[%clk 0:02:36]} 9. Nxc6 {[%clk 0:03:04]}  bxc6 {[%clk 0:02:36]} 10. e4 {[%clk 0:03:04]}  Ba6 {[%clk 0:02:08]} 11. Re1 {[%clk 0:03:03]}  dxe4 {[%clk 0:01:54]} 12. dxe4 {[%clk 0:03:04]}  Rfd8 {[%clk 0:01:53]} 13. Qa4 {[%clk 0:03:05]}  Bb5 {[%clk 0:01:53]} 14. Qa3 {[%clk 0:03:05]}  Bd3 {[%clk 0:01:32]} 15. e5 {[%clk 0:02:59]}  Ne4 {[%clk 0:01:04]} 16. Nd2 {[%clk 0:02:55]}  Nxd2 {[%clk 0:01:03]} 17. Bxd2 {[%clk 0:02:56]}  c4 {[%clk 0:01:03]} 18. Be3 {[%clk 0:02:56]}  Bf8 {[%clk 0:00:57]} 19. Rad1 {[%clk 0:02:56]}  a5 {[%clk 0:00:47]} 20. Bc5 {[%clk 0:02:56]}  a4 {[%clk 0:00:44]} 21. h4 {[%clk 0:02:51]}  h5 {[%clk 0:00:44]} 22. Kh2 {[%clk 0:02:51]}  Rdb8 {[%clk 0:00:42]} 23. Rd2 {[%clk 0:02:50]}  Qc8 {[%clk 0:00:38]} 24. e6 {[%clk 0:02:50]}  fxe6 {[%clk 0:00:24]} 25. Bxe7 {[%clk 0:02:50]}  Bg7 {[%clk 0:00:23]} 26. Bd6 {[%clk 0:02:48]}  Rb5 {[%clk 0:00:23]} 27. Be5 {[%clk 0:02:18]}  Qd7 {[%clk 0:00:17]} 28. Bxg7 {[%clk 0:02:16]}  Kxg7 {[%clk 0:00:18]} 29. Re3 {[%clk 0:02:10]}  Qf7 {[%clk 0:00:16]} 30. Qd6 {[%clk 0:02:08]}  Rab8 {[%clk 0:00:15]} 31. Rxe6 {[%clk 0:02:01]}  Rd8 {[%clk 0:00:14]} 32. Qxc6 {[%clk 0:01:51]}  Rb7 {[%clk 0:00:10]} 33. Qxb7 {[%clk 0:01:50]} 1-0


[Site "https://www.chess.com"]

[Event "Titled Tuesday Blitz January 25 2022"]
[White "Navalgund, Niranjan"]
[Black "Ibrahimli, Murad"]
[WhiteFideId "5030854"]
[BlackFideId "13410229"]
[WhiteElo "2290"]
[BlackElo "2109"]
[Result "0-1"]
[Round "09"]
[TimeControl "180+1"]
[Date "2022.01.26"]
[WhiteClock "0:00:10"]
[BlackClock "0:00:25"]

1. e4 {[%clk 0:02:45]}  e5 {[%clk 0:02:54]} 2. Nf3 {[%clk 0:02:45]}  Nc6 {[%clk 0:02:54]} 3. Bb5 {[%clk 0:02:44]}  Nf6 {[%clk 0:02:53]} 4. O-O {[%clk 0:02:43]}  Nxe4 {[%clk 0:02:53]} 5. Re1 {[%clk 0:02:36]}  Nd6 {[%clk 0:02:51]} 6. Bf1 {[%clk 0:02:36]}  Be7 {[%clk 0:02:46]} 7. Nxe5 {[%clk 0:02:36]}  O-O {[%clk 0:02:45]} 8. d4 {[%clk 0:02:34]}  Nf5 {[%clk 0:02:41]} 9. c3 {[%clk 0:02:27]}  Bf6 {[%clk 0:02:34]} 10. Bd3 {[%clk 0:02:26]}  d5 {[%clk 0:02:20]} 11. Ng4 {[%clk 0:01:41]}  Nd6 {[%clk 0:02:06]} 12. Qf3 {[%clk 0:01:37]}  Bxg4 {[%clk 0:02:04]} 13. Qxg4 {[%clk 0:01:37]}  Re8 {[%clk 0:02:05]} 14. Rxe8+ {[%clk 0:01:33]}  Qxe8 {[%clk 0:02:05]} 15. Bd2 {[%clk 0:01:33]}  Ne4 {[%clk 0:02:04]} 16. Be3 {[%clk 0:01:31]}  Na5 {[%clk 0:01:19]} 17. Nd2 {[%clk 0:00:58]}  Nxd2 {[%clk 0:01:16]} 18. Bxd2 {[%clk 0:00:59]}  Nc4 {[%clk 0:01:04]} 19. Re1 {[%clk 0:00:52]}  Qc8 {[%clk 0:01:04]} 20. Bf5 {[%clk 0:00:34]}  Qf8 {[%clk 0:01:02]} 21. Bc1 {[%clk 0:00:32]}  Re8 {[%clk 0:00:57]} 22. Re2 {[%clk 0:00:28]}  g6 {[%clk 0:00:52]} 23. Bd3 {[%clk 0:00:26]}  Bg7 {[%clk 0:00:50]} 24. h4 {[%clk 0:00:26]}  f5 {[%clk 0:00:44]} 25. Qf3 {[%clk 0:00:22]}  c6 {[%clk 0:00:44]} 26. h5 {[%clk 0:00:22]}  Nd6 {[%clk 0:00:38]} 27. hxg6 {[%clk 0:00:18]}  hxg6 {[%clk 0:00:36]} 28. Qg3 {[%clk 0:00:17]}  Rxe2 {[%clk 0:00:35]} 29. Bxe2 {[%clk 0:00:17]}  Kf7 {[%clk 0:00:35]} 30. f3 {[%clk 0:00:12]}  Qe7 {[%clk 0:00:30]} 31. Kf1 {[%clk 0:00:13]}  Bf6 {[%clk 0:00:30]} 32. Bf4 {[%clk 0:00:13]}  Nc4 {[%clk 0:00:28]} 33. b3 {[%clk 0:00:12]}  Ne3+ {[%clk 0:00:25]} 34. Kf2 {[%clk 0:00:12]}  Bh4 {[%clk 0:00:24]} 35. Qxh4 {[%clk 0:00:09]}  Qxh4+ {[%clk 0:00:25]} 36. Kxe3 {[%clk 0:00:10]}  Qe1 {[%clk 0:00:25]} 37. g4 {[%clk 0:00:09]}  Qxc3+ {[%clk 0:00:25]} 38. Kf2 {[%clk 0:00:09]}  fxg4 {[%clk 0:00:25]} 39. Be3 {[%clk 0:00:10]}  g3+ {[%clk 0:00:25]} 0-1


[Site "https://www.chess.com"]

[Event "Titled Tuesday Blitz January 25 2022"]
[White "Nesterov, Arseniy"]
[Black "Le, Tuan Minh"]
[WhiteFideId "24198455"]
[BlackFideId "12401153"]
[WhiteElo "2489"]
[BlackElo "2450"]
[Result "0-1"]
[Round "09"]
[TimeControl "180+1"]
[Date "2022.01.26"]
[WhiteClock "0:01:27"]
[BlackClock "0:02:21"]

1. d4 {[%clk 0:03:00]}  d5 {[%clk 0:03:00]} 2. c4 {[%clk 0:03:01]}  c6 {[%clk 0:02:59]} 3. Nc3 {[%clk 0:03:01]}  Nf6 {[%clk 0:03:00]} 4. e3 {[%clk 0:03:01]}  a6 {[%clk 0:03:00]} 5. Qc2 {[%clk 0:02:59]}  e6 {[%clk 0:02:57]} 6. Nf3 {[%clk 0:02:56]}  dxc4 {[%clk 0:02:57]} 7. Bxc4 {[%clk 0:02:55]}  b5 {[%clk 0:02:58]} 8. Bd3 {[%clk 0:02:52]}  Bb7 {[%clk 0:02:56]} 9. O-O {[%clk 0:02:38]}  Nbd7 {[%clk 0:02:56]} 10. a4 {[%clk 0:02:13]}  Rc8 {[%clk 0:02:49]} 11. Ne4 {[%clk 0:01:59]}  Qb6 {[%clk 0:02:36]} 12. Bd2 {[%clk 0:01:39]}  Nxe4 {[%clk 0:02:26]} 13. Bxe4 {[%clk 0:01:39]}  c5 {[%clk 0:02:27]} 14. Ba5 {[%clk 0:01:27]}  Bxe4 {[%clk 0:02:21]} 0-1


[Site "https://www.chess.com"]